fUSD/lending_fUSD_20250630
["ID","MTS","AMOUNT","RATE_DAILY","PERIOD"]
[368705586,1751315568961,164.89857552,0.00017726,30]
[368705587,1751315569031,164.89857552,0.00017836,30]
[368705588,1751315694415,2968.81241866,0.00012793,2]
[368705589,1751315694437,8000.0,0.00012793,2]
[368705590,1751315694459,8000.0,0.00012793,2]
[368705591,1751315694479,4931.18758134,0.00012793,2]
[368705592,1751315697367,153.78736691,0.00017068,30]
[368705593,1751315697991,153.78736691,0.00017151,30]
[368705594,1751315698144,153.78736691,0.00017233,30]
[368705595,1751315698217,153.78736691,0.00017315,30]
[368705596,1751315698330,153.78736691,0.00017397,30]
[368705597,1751315698398,153.78736691,0.00017479,30]
[368705598,1751315698491,153.78736691,0.00017562,30]
[368705599,1751315698563,153.78736691,0.00017644,30]
[368705600,1751315698632,153.78736691,0.00017726,30]
[368705601,1751315698712,153.78736691,0.00017836,30]
[368705602,1751315795482,150.0,0.00012562,2]
[368705603,1751315814874,150.0,0.00012767,2]
[368705604,1751315842981,320.16,0.0001277,2]
[368705605,1751315941884,200.0,0.00012734,7]
[368705606,1751316222400,176.82,0.00012725,2]
[368705608,1751316262897,737.23,0.00012734,2]
[368705609,1751316269450,524.0,0.00012883,2]
[368705638,1751316370247,810.60241866,0.0001269,2]
[368705639,1751316370270,189.39758134,0.0001269,2]
[368705677,1751316473760,171.48,0.00013071,2]
[368705678,1751316537329,252.31,0.00012717,2]
[368705776,1751316553989,-6777.0001,0.000134,2]
[368705777,1751316554017,-3196.53740562,0.0001349,2]
[368705778,1751316554046,-1200.0,0.0001349,2]
[368705779,1751316554075,-600.0,0.0001349,2]
[368705780,1751316554104,-300.0,0.00013491,2]
[368705781,1751316554133,-6912.642,0.00013492,2]
[368705782,1751316554162,-207.4,0.00013492,2]
[368705783,1751316554190,-150.0,0.00013499,2]
[368705784,1751316554218,-65916.0,0.000135,2]
[368705785,1751316554246,-6924.49293428,0.00013547,2]
[368705786,1751316554273,-1535.68368376,0.00013551,2]
[368705787,1751316554301,-1535.68368371,0.0001359,2]
[368705788,1751316554327,-222.09,0.000136,2]
[368705789,1751316554353,-1000.0,0.000136,2]
[368705790,1751316554379,-2500.0,0.00013603,2]
[368705791,1751316554409,-4031.89567,0.0001361,2]
[368705792,1751316554437,-4031.89567,0.0001361,2]
[368705793,1751316554465,-4031.89567,0.0001361,2]
[368705794,1751316554493,-4031.89568,0.0001361,2]
[368705795,1751316554522,-4031.89567,0.0001361,2]
[368705796,1751316554551,-862.99183263,0.0001361,2]
[368706140,1751316569316,179.67,0.00012823,2]
[368706147,1751316582545,-506.3549646,0.00013432,2]
[368706148,1751316582572,-3168.90384737,0.0001361,2]
[368706149,1751316582597,-171.48,0.00013611,2]
[368706150,1751316582623,-1535.68368371,0.00013629,2]
[368706151,1751316582647,-29743.5291,0.0001365,2]
[368706152,1751316582672,-151.0,0.0001365,2]
[368706153,1751316582695,-151.0,0.0001365,2]
[368706154,1751316582719,-1000.0,0.0001365,2]
[368706155,1751316582743,-9622.26,0.00013651,2]
[368706156,1751316582767,-4124.17,0.00013651,2]
[368706157,1751316582790,-1206.57,0.00013658,2]
[368706158,1751316582814,-9999.99,0.00013658,2]
[368706159,1751316582837,-150.99,0.00013658,2]
[368706160,1751316582861,-1535.68368371,0.00013667,2]
[368706161,1751316582885,-300.0,0.00013695,2]
[368706162,1751316582908,-1000.0,0.00013695,2]
[368706163,1751316582932,-1000.0,0.00013695,2]
[368706164,1751316582955,-1000.0,0.00013695,2]
[368706165,1751316582979,-1000.0,0.00013695,2]
[368706166,1751316583002,-1000.0,0.00013695,2]
[368706167,1751316583029,-1000.0,0.00013695,2]
[368706168,1751316583052,-668.65185757,0.00013695,2]
[368706169,1751316583076,-1000.0,0.00013695,2]
[368706170,1751316583099,-1000.0,0.00013695,2]
[368706171,1751316583123,-500.0,0.00013695,2]
[368706172,1751316583146,-151.0,0.00013695,2]
[368706173,1751316583172,-1000.0,0.00013695,2]
[368706174,1751316583198,-500.0,0.00013695,2]
[368706175,1751316583222,-1000.0,0.00013695,2]
[368706176,1751316583248,-500.0,0.00013695,2]
[368706177,1751316583271,-1000.0,0.00013695,2]
[368706178,1751316583296,-500.0,0.00013695,2]
[368706179,1751316583322,-1000.0,0.00013695,2]
[368706180,1751316583347,-500.0,0.00013695,2]
[368706181,1751316583370,-1000.0,0.00013695,2]
[368706182,1751316583395,-500.0,0.00013695,2]
[368706183,1751316583421,-1000.0,0.00013695,2]
[368706184,1751316583755,-500.0,0.00013695,2]
[368706185,1751316583781,-1072.57690513,0.00013695,2]
[368706186,1751316583806,-500.0,0.00013695,2]
[368706187,1751316583831,-300.0,0.00013695,2]
[368706188,1751316583859,-500.0,0.00013695,2]
[368706189,1751316583885,-300.0,0.00013695,2]
[368706190,1751316583910,-500.0,0.00013695,2]
[368706191,1751316583934,-500.0,0.00013695,2]
[368706192,1751316583958,-439.95521171,0.00013695,2]
[368706193,1751316583982,-500.0,0.00013695,2]
[368706194,1751316584005,-300.0,0.00013695,2]
[368706195,1751316584029,-300.0,0.00013695,2]
[368706196,1751316584052,-300.0,0.00013695,2]
[368706197,1751316584077,-500.0,0.00013695,2]
[368706198,1751316584100,-500.0,0.00013695,2]
[368706199,1751316584126,-500.0,0.00013695,2]
[368706200,1751316584150,-500.0,0.00013695,2]
[368706201,1751316584174,-500.0,0.00013695,2]
[368706202,1751316584198,-200.0,0.00013699,2]
[368706203,1751316584222,-502.14,0.00013699,2]
[368706204,1751316584245,-151.0,0.00013699,2]
[368706205,1751316584269,-152.513498,0.000137,2]
[368706206,1751316584292,-500.0,0.00013702,2]
[368706207,1751316584316,-183.60946268,0.00013702,2]
[368706208,1751316584340,-500.0,0.00013702,2]
[368706209,1751316584363,-155.89258094,0.00013702,2]
[368706210,1751316584387,-483.71148349,0.00013702,2]
[368706211,1751316584414,-500.0,0.00013702,2]
[368706212,1751316584437,-500.0,0.00013702,2]
[368706213,1751316584463,-500.0,0.00013702,2]
[368706214,1751316584494,-500.0,0.00013702,2]
[368706215,1751316584537,-480.34896111,0.00013702,2]
[368706216,1751316584563,-341.38741796,0.00013702,2]
[368706217,1751316584586,-151.529697,0.00013703,2]
[368706218,1751316584610,-151.0,0.00013703,2]
[368706219,1751316584634,-151.0,0.00013703,2]
[368706220,1751316584660,-151.0,0.00013703,2]
[368706221,1751316584685,-151.0,0.00013703,2]
[368706222,1751316584710,-151.0,0.00013703,2]
[368706223,1751316584734,-212.735661,0.00013703,2]
[368706224,1751316584758,-153.830988,0.00013703,2]
[368706225,1751316584782,-151.0,0.00013703,2]
[368706226,1751316584805,-151.825368,0.00013703,2]
[368706227,1751316584830,-151.0,0.00013703,2]
[368706228,1751316584855,-151.0,0.00013703,2]
[368706229,1751316584880,-151.0,0.00013703,2]
[368706230,1751316584904,-272.047402,0.00013703,2]
[368706231,1751316584928,-151.0,0.00013703,2]
[368706232,1751316584953,-151.0,0.00013703,2]
[368706233,1751316584978,-151.0,0.00013703,2]
[368706234,1751316585002,-151.0,0.00013703,2]
[368706235,1751316585027,-172.865576,0.00013703,2]
[368706236,1751316585052,-172.865576,0.00013703,2]
[368706237,1751316585078,-223.587635,0.00013703,2]
[368706238,1751316585103,-172.865576,0.00013703,2]
[368706239,1751316585128,-223.587635,0.00013703,2]
[368706240,1751316585153,-223.587635,0.00013703,2]
[368706241,1751316585178,-172.865576,0.00013703,2]
[368706242,1751316585203,-172.865576,0.00013703,2]
[368706243,1751316585229,-172.865576,0.00013703,2]
[368706244,1751316585253,-223.587635,0.00013703,2]
[368706245,1751316585278,-223.587635,0.00013703,2]
[368706246,1751316585303,-223.587635,0.00013703,2]
[368706247,1751316585328,-308.3815,0.00013703,2]
[368706248,1751316585353,-36198.9323,0.00013703,2]
[368706249,1751316585378,-1535.68368371,0.00013706,2]
[368706250,1751316585405,-163.99,0.0001374,2]
[368706251,1751316585428,-151.0,0.00013742,2]
[368706252,1751316585454,-151.0,0.00013742,2]
[368706253,1751316585478,-151.0,0.00013742,2]
[368706254,1751316585503,-151.0,0.00013742,2]
[368706255,1751316585528,-151.0,0.00013742,2]
[368706256,1751316585553,-152.095957,0.00013742,2]
[368706257,1751316585580,-151.0,0.00013742,2]
[368706258,1751316585605,-1535.68368371,0.00013745,2]
[368706259,1751316585629,-151.0,0.00013749,2]
[368706260,1751316585653,-151.0,0.00013749,2]
[368706261,1751316585679,-151.0,0.0001375,2]
[368706263,1751316585703,-151.0,0.0001375,2]
[368706264,1751316585727,-152.100098,0.0001375,2]
[368706265,1751316585750,-151.0,0.0001375,2]
[368706266,1751316585774,-151.0,0.0001375,2]
[368706267,1751316585800,-151.0,0.0001375,2]
[368706268,1751316585827,-151.0,0.0001375,2]
[368706269,1751316585856,-151.0,0.0001375,2]
[368706270,1751316585883,-151.0,0.0001375,2]
[368706271,1751316585909,-266.258498,0.0001375,2]
[368706272,1751316585934,-151.0,0.0001375,2]
[368706274,1751316585959,-151.0,0.0001375,2]
[368706275,1751316585984,-151.0,0.0001375,2]
[368706276,1751316586008,-151.0,0.0001375,2]
[368706277,1751316586033,-151.0,0.0001375,2]
[368706278,1751316586057,-151.0,0.0001375,2]
[368706279,1751316586083,-172.865576,0.0001375,2]
[368706280,1751316586108,-223.587635,0.0001375,2]
[368706281,1751316586132,-172.865576,0.0001375,2]
[368706282,1751316586159,-223.587635,0.0001375,2]
[368706283,1751316586186,-151.0,0.00013751,2]
[368706284,1751316586212,-151.0,0.00013751,2]
[368706285,1751316586237,-151.0,0.00013751,2]
[368706286,1751316586264,-500.0,0.00013773,2]
[368706287,1751316586293,-550.84378676,0.00013773,2]
[368706288,1751316586318,-500.0,0.00013773,2]
[368706289,1751316586341,-500.0,0.00013773,2]
[368706290,1751316586366,-1000.0,0.00013775,2]
[368706291,1751316586391,-300.2643,0.00013776,2]
[368706292,1751316586420,-170.961138,0.00013779,2]
[368706293,1751316586447,-1535.68368371,0.00013784,2]
[368706294,1751316586472,-151.0,0.00013797,2]
[368706295,1751316586498,-151.0,0.00013797,2]
[368706296,1751316586523,-151.0,0.00013797,2]
[368706297,1751316586548,-151.0,0.00013797,2]
[368706298,1751316586582,-154.576031,0.00013797,2]
[368706299,1751316586615,-151.0,0.00013797,2]
[368706300,1751316586649,-162.389145,0.00013797,2]
[368706301,1751316586675,-835.8297818,0.00013802,2]
[368706302,1751316586700,-151.0,0.00013803,2]
[368706304,1751316586726,-151.0,0.00013803,2]
[368706305,1751316586750,-151.0,0.00013803,2]
[368706306,1751316587036,-1535.68368371,0.00013822,2]
[368706307,1751316587062,-327.40785878,0.00013851,2]
[368706308,1751316587086,-398.6605903,0.00013852,2]
[368706309,1751316587110,-151.0,0.00013852,2]
[368706310,1751316587134,-151.0,0.00013852,2]
[368706311,1751316587158,-151.0,0.00013852,2]
[368706312,1751316587182,-172.865576,0.00013852,2]
[368706313,1751316587205,-223.587635,0.00013852,2]
[368706314,1751316587229,-172.865576,0.00013852,2]
[368706315,1751316587252,-223.587635,0.00013852,2]
[368706316,1751316587277,-7149.0,0.00013852,2]
[368706317,1751316587300,-4105.0,0.00013852,2]
[368706318,1751316587323,-156.0,0.00013852,2]
[368706319,1751316587345,-857.0,0.00013852,2]
[368706320,1751316587368,-3341.0,0.00013852,2]
[368706321,1751316587391,-886.0,0.00013852,2]
[368706322,1751316587418,-948.0,0.00013852,2]
[368706323,1751316587441,-1163.0,0.00013852,2]
[368706324,1751316587467,-639.0,0.00013852,2]
[368706325,1751316587493,-804.0,0.00013852,2]
[368706326,1751316587516,-2009.0,0.00013852,2]
[368706327,1751316587542,-1501.67039654,0.00013852,2]
[368706340,1751316601115,-600.0,0.00013602,2]
[368706341,1751316601142,-1000.0,0.00013603,2]
[368706342,1751316601170,-10554.9485,0.00013603,2]
[368706343,1751316601196,-4754.16710536,0.00013694,2]
[368706344,1751316601223,-177.32960346,0.00013852,2]
[368706345,1751316601249,-560.0,0.00013852,2]
[368706346,1751316601275,-592.0,0.00013852,2]
[368706347,1751316601300,-1281.0,0.00013852,2]
[368706348,1751316601325,-480.55479118,0.00013852,2]
[368706362,1751316620966,-1200.0,0.00013602,2]
[368706363,1751316620991,-300.0,0.00013602,2]
[368706364,1751316621017,-151.0,0.00013695,2]
[368706365,1751316621042,-151.0,0.00013703,2]
[368706366,1751316621067,-151.0,0.00013703,2]
[368706367,1751316621091,-2500.0,0.00013727,2]
[368706368,1751316621115,-200.0,0.00013852,2]
[368706369,1751316621140,-208.858754,0.00013852,2]
[368706370,1751316621163,-449.44520882,0.00013852,2]
[368706371,1751316621188,-1535.68368371,0.00013861,2]
[368706373,1751316621212,-4105.0,0.00013862,2]
[368706374,1751316621237,-156.0,0.00013862,2]
[368706375,1751316621265,-769.745,0.00013863,2]
[368706376,1751316621290,-151.0,0.00013872,2]
[368706377,1751316621315,-151.0,0.00013873,2]
[368706378,1751316621339,-151.0,0.00013876,2]
[368706379,1751316621363,-1515.3774217,0.00013877,2]
[368706380,1751316621387,-280.6820465,0.00013886,2]
[368706381,1751316621412,-200.0,0.00013888,2]
[368706382,1751316621437,-181.29576663,0.00013892,2]
[368706384,1751316621462,-181.29576661,0.00013893,2]
[368706385,1751316621488,-181.29576661,0.00013894,2]
[368706386,1751316621514,-181.29576661,0.00013895,2]
[368706387,1751316621540,-181.29576661,0.00013896,2]
[368706388,1751316621566,-181.29576661,0.00013896,2]
[368706389,1751316621591,-181.29576661,0.00013897,2]
[368706390,1751316621616,-181.29576661,0.00013898,2]
[368706391,1751316621641,-151.0,0.00013899,2]
[368706392,1751316621665,-181.29576661,0.00013899,2]
[368706393,1751316621689,-227.05647038,0.000139,2]
[368706394,1751316621714,-151.0,0.000139,2]
[368706395,1751316621738,-911.58130986,0.000139,2]
[368706396,1751316621763,-1535.68368371,0.000139,2]
[368706397,1751316621790,-237.09536606,0.000139,2]
[368706398,1751316621814,-10013.43071542,0.000139,2]
[368706399,1751316621839,-181.29576661,0.000139,2]
[368706400,1751316621862,-500.0,0.00013973,2]
[368706401,1751316621886,-133.40267372,0.00013973,2]
[368706459,1751316633045,-151.0,0.00013695,2]
[368706461,1751316633055,-151.0,0.00013695,2]
[368706463,1751316633065,-151.0,0.00013703,2]
[368706465,1751316633075,-151.0,0.00013703,2]
[368706467,1751316633085,-151.0,0.00013703,2]
[368706469,1751316633095,-151.0,0.00013703,2]
[368706471,1751316633106,-151.0,0.00013852,2]
[368706473,1751316633115,-7149.0,0.00013862,2]
[368706475,1751316633125,-366.59732628,0.00013973,2]
[368706477,1751316633135,-500.0,0.00013973,2]
[368706479,1751316633145,-500.0,0.00013973,2]
[368706481,1751316633156,-500.0,0.00013973,2]
[368706483,1751316633166,-500.0,0.00013973,2]
[368706485,1751316633176,-517.48199749,0.00013973,2]
[368706487,1751316633186,-505.96514752,0.00013973,2]
[368706489,1751316633196,-426.69437382,0.00013973,2]
[368706491,1751316633207,-500.0,0.00013973,2]
[368706493,1751316633218,-502.06156027,0.00013973,2]
[368706495,1751316633227,-500.0,0.00013973,2]
[368706497,1751316633236,-500.0,0.00013973,2]
[368706499,1751316633246,-500.0,0.00013973,2]
[368706501,1751316633255,-500.0,0.00013973,2]
[368706502,1751316633266,-377.97659137,0.00013973,2]
[368706504,1751316633276,-175.127099,0.00013973,2]
[368706507,1751316633286,-275.588022,0.00013973,2]
[368706508,1751316633297,-205.13838126,0.00013973,2]
[368706510,1751316633306,-150.0,0.00013973,2]
[368706512,1751316633316,-500.0,0.00013973,2]
[368706514,1751316633327,-150.0,0.00013973,2]
[368706516,1751316633336,-225.45732864,0.00013973,2]
[368706518,1751316633345,-500.0,0.00013973,2]
[368706520,1751316633355,-500.0,0.00013973,2]
[368706522,1751316633365,-1445.0,0.00013973,2]
[368706524,1751316633375,-500.0,0.00013973,2]
[368706526,1751316633385,-3435.0,0.00013973,2]
[368706528,1751316633395,-237.79360645,0.00013973,2]
[368706530,1751316633405,-150.0,0.00013973,2]
[368706532,1751316633418,-150.0,0.00013973,2]
[368706534,1751316633428,-500.0,0.00013973,2]
[368706536,1751316633437,-150.0,0.00013973,2]
[368706538,1751316633447,-500.0,0.00013973,2]
[368706540,1751316633457,-500.0,0.00013973,2]
[368706542,1751316633467,-150.0,0.00013973,2]
[368706544,1751316633476,-1543.0,0.00013973,2]
[368706546,1751316633486,-223.587635,0.00013973,2]
[368706547,1751316633499,-172.865576,0.00013973,2]
[368706549,1751316633510,-172.865576,0.00013973,2]
[368706551,1751316633521,-223.587635,0.00013973,2]
[368706553,1751316633531,-500.0,0.00013973,2]
[368706555,1751316633541,-500.0,0.00013973,2]
[368706557,1751316633552,-500.0,0.00013973,2]
[368706559,1751316633562,-150.0,0.00013973,2]
[368706561,1751316633572,-500.0,0.00013973,2]
[368706563,1751316633582,-578.0,0.00013973,2]
[368706565,1751316633592,-265.744818,0.00013973,2]
[368706567,1751316633602,-1383.7892,0.00013973,2]
[368706569,1751316633612,-1373.78115,0.0001399,2]
[368706571,1751316633623,-1232.1848784,0.0001399,2]
[368706573,1751316633632,-1090.5886067,0.0001399,2]
[368706575,1751316633643,-948.9923351,0.0001399,2]
[368706577,1751316633652,-151.0,0.00013992,2]
[368706579,1751316633663,-5948.4625217,0.00013992,2]
[368706581,1751316633673,-166.64434375,0.00013992,2]
[368706583,1751316633682,-18667.0458333,0.00013992,2]
[368706585,1751316633692,-18667.0458333,0.00013992,2]
[368706587,1751316633702,-1715.2718066,0.00013992,2]
[368706589,1751316633712,-18145.4586666,0.00013992,2]
[368706591,1751316633722,-172.865576,0.00013992,2]
[368706593,1751316633731,-223.587635,0.00013992,2]
[368706595,1751316633741,-172.865576,0.00013992,2]
[368706597,1751316633751,-223.587635,0.00013992,2]
[368706599,1751316633764,-172.865576,0.00013992,2]
[368706601,1751316633774,-172.865576,0.00013992,2]
[368706603,1751316633783,-223.587635,0.00013992,2]
[368706605,1751316633794,-223.587635,0.00013992,2]
[368706607,1751316633804,-2548.585468,0.00013996,2]
[368706609,1751316633813,-2531.36365966,0.00013996,2]
[368706614,1751316633852,-79.29083534,0.00013996,2]
[368706616,1751316633861,-988.07546966,0.00013996,2]
[368706620,1751316633894,-308.37936374,0.00013996,2]
[368706715,1751316639363,-2500.0,0.00013603,2]
[368706717,1751316639373,-151.0,0.00013852,2]
[368706719,1751316639383,-886.0,0.00013874,2]
[368706721,1751316639393,-150.0,0.00013925,2]
[368706723,1751316639403,-151.0,0.00013973,2]
[368706725,1751316639416,-150.0,0.00013973,2]
[368706727,1751316639426,-150.0,0.00013988,2]
[368706729,1751316639436,-151.0,0.00013992,2]
[368706731,1751316639445,-999.9368526,0.00013996,2]
[368706733,1751316639457,-2548.585468,0.00013997,2]
[368706735,1751316639467,-1557.80487709,0.00013997,2]
[368706737,1751316639479,-990.78059091,0.00013997,2]
[368706739,1751316639493,-559.37940909,0.00013997,2]
[368706743,1751316639515,-329.57065065,0.00013997,2]
[368706745,1751316639531,-294.75802627,0.00013997,2]
[368706748,1751316639544,-1426.94640899,0.00013997,2]
[368706750,1751316639554,-2610.654495,0.00013997,2]
[368706752,1751316639564,-2296.391686,0.00013997,2]
[368706754,1751316639573,-2296.391686,0.00013997,2]
[368706756,1751316639583,-151.0,0.00013999,2]
[368706758,1751316639593,-2548.585468,0.00013999,2]
[368706760,1751316639603,-2610.654495,0.00013999,2]
[368706762,1751316639613,-2296.391686,0.00013999,2]
[368706764,1751316639623,-1000.8993,0.00013999,2]
[368706766,1751316639633,-500.0,0.00013999,2]
[368706768,1751316639644,-263.4205509,0.00013999,2]
[368706770,1751316639655,-500.0,0.00013999,2]
[368706772,1751316639665,-375.65706478,0.00013999,2]
[368706774,1751316639676,-500.0,0.00013999,2]
[368706776,1751316639685,-335.7782474,0.00013999,2]
[368706778,1751316639695,-19354.88281585,0.00014,2]
[368706781,1751316639707,-2166.37608666,0.00014,2]
[368706783,1751316639719,-622.975528,0.00014,2]
[368706793,1751316639813,-21553.0,0.00014,2]
[368706796,1751316639826,-824.93485951,0.00014,2]
[368706798,1751316639839,-8232.8989261,0.00014,2]
[368706802,1751316639870,-9078.16897881,0.00014,2]
[368706805,1751316639883,-1745.11144488,0.00014,2]
[368706807,1751316639894,-1620.877762,0.00014,2]
[368706809,1751316639907,-2290.16,0.00014,2]
[368706811,1751316639919,-476.03,0.00014,2]
[368706814,1751316639937,-1662.4,0.00014,2]
[368707069,1751316643591,-500.0,0.00013973,2]
[368707070,1751316643602,-151.0,0.00013992,2]
[368707071,1751316643611,-291.03552314,0.00014,2]
[368707259,1751316647971,-150.0,0.0001388,2]
[368707260,1751316647981,-151.0,0.00013999,2]
[368707261,1751316647990,-220.03877346,0.00013999,2]
[368707262,1751316648000,-32.03754036,0.00014,2]
[368707263,1751316648088,-2447.13085106,0.00014,2]
[368707270,1751316671453,-151.85632,0.00013695,2]
[368707271,1751316671479,-857.0,0.00013874,2]
[368707272,1751316671503,-1163.0,0.00013877,2]
[368707273,1751316671528,-206.15808041,0.000139,2]
[368707274,1751316671552,-835.8297818,0.00013973,2]
[368707275,1751316671577,-500.0,0.00013999,2]
[368707276,1751316671602,-584.89675094,0.00013999,2]
[368707277,1751316671628,-448.15835797,0.00013999,2]
[368707278,1751316671652,-300.0,0.00013999,2]
[368707279,1751316671676,-150.0,0.00013999,2]
[368707280,1751316671700,-249.0,0.00013999,2]
[368707281,1751316671728,-94554.10070888,0.00014,2]
[368707282,1751316673566,-100000.0,0.00014,2]
[368707284,1751316681542,-170.961138,0.00013719,2]
[368707285,1751316681569,-158.06357738,0.000139,2]
[368707286,1751316681598,-49670.97528462,0.00014,2]
[368707287,1751316683420,-151.0,0.00013695,2]
[368707288,1751316683448,-151.0,0.00013703,2]
[368707289,1751316683478,-151.0,0.00013703,2]
[368707290,1751316683511,-49547.0,0.00014,2]
[368707296,1751316689069,-6675.62047694,0.000139,2]
[368707297,1751316689097,-5324.37952306,0.00014,2]
[368707303,1751316816820,150.0,0.00013093,2]
[368707304,1751316866946,150.0,0.00012927,2]
[368707305,1751317151492,200.0,0.00012872,7]
[368707308,1751317228497,6707.14241866,0.0001287,2]
[368707309,1751317228519,8000.0,0.0001287,2]
[368707310,1751317228541,8000.0,0.0001287,2]
[368707311,1751317228563,1192.85758134,0.0001287,2]
[368707312,1751317296661,1591.365619,0.00013052,2]
[368707313,1751317356625,179.02,0.00012798,2]
[368707314,1751317389267,1000.0,0.00012804,2]
[368707316,1751317434136,368.61,0.00012874,2]
[368707416,1751317653143,164.77,0.00012979,2]
[368707417,1751317708670,-388.2114,0.00013119,2]
[368707767,1751317831712,-111.7886,0.00013119,2]
[368707769,1751317831722,-500.0,0.00013119,2]
[368707771,1751317831732,-494.19914527,0.00013119,2]
[368707773,1751317831742,-150.0,0.00013591,2]
[368707775,1751317831751,-300.0,0.00013591,2]
[368707777,1751317831761,-1200.0,0.00013591,2]
[368707779,1751317831771,-299.99,0.00013592,2]
[368707782,1751317831781,-300.0,0.00013592,2]
[368707785,1751317831790,-207.4,0.00013592,2]
[368707788,1751317831799,-300.0,0.00013592,2]
[368707790,1751317831810,-300.0,0.00013592,2]
[368707792,1751317831819,-500.0,0.00013592,2]
[368707794,1751317831829,-500.0,0.00013592,2]
[368707796,1751317831838,-500.0,0.00013592,2]
[368707798,1751317831848,-500.0,0.00013592,2]
[368707801,1751317831857,-500.0,0.00013592,2]
[368707804,1751317831867,-500.0,0.00013592,2]
[368707807,1751317831876,-152.42271337,0.00013592,2]
[368707810,1751317831885,-514.0,0.00013595,2]
[368707813,1751317831895,-2143.753,0.00013595,2]
[368707817,1751317831904,-999.99,0.00013595,2]
[368707820,1751317831913,-500.0,0.00013599,2]
[368707823,1751317831922,-71508.75741136,0.000136,2]
[368707826,1751317831934,-13403.8275239,0.000136,2]
[368707849,1751317832062,-127.71776474,0.000136,2]
[368707851,1751317832072,-490.0,0.00013671,2]
[368707853,1751317832082,-1133.30333063,0.00013699,2]
[368707856,1751317832094,-324.2343219,0.00013699,2]
[368707858,1751317832105,-414.0,0.00013699,2]
[368707883,1751317832364,-128.46234747,0.00013699,2]
[368707885,1751317832374,-200.0,0.00013699,2]
[368707888,1751317832384,-3016.22140332,0.00013764,2]
[368707890,1751317832396,-324.77859668,0.00013764,2]
[368707892,1751317832405,-804.0,0.00013764,2]
[368707894,1751317832415,-639.0,0.00013764,2]
[368707895,1751317832425,-290.22328882,0.00013764,2]
[368708321,1751317838246,-758.96506545,0.00013764,2]
[368708328,1751317838307,-959.81164573,0.00013764,2]
[368708330,1751317838317,-923.71668668,0.00013782,2]
[368708332,1751317838328,-493.89398708,0.00013782,2]
[368708334,1751317838340,-261.38932624,0.00013782,2]
[368708336,1751317838350,-539.03171436,0.00013782,2]
[368708338,1751317838362,-741.96828564,0.00013782,2]
[368708340,1751317838372,-107.24606399,0.00013782,2]
[368708343,1751317838384,-484.75393601,0.00013782,2]
[368708345,1751317838393,-636.61346684,0.00013782,2]
[368708488,1751317839833,-293.38653316,0.00013782,2]
[368708490,1751317839843,-560.0,0.00013782,2]
[368708492,1751317839852,-1163.0,0.00013782,2]
[368708494,1751317839861,-965.000785,0.00013789,2]
[368708497,1751317839872,-947.04999999,0.00013789,2]
[368708503,1751317839920,-607.46602351,0.00013789,2]
[368708553,1751317840398,-4629.4831915,0.00013789,2]
[368708555,1751317840407,-4105.0,0.00013789,2]
[368708557,1751317840417,-857.0,0.00013789,2]
[368708559,1751317840427,-156.0,0.00013789,2]
[368708561,1751317840436,-835.8297818,0.00013796,2]
[368708563,1751317840445,-1153.15767,0.0001386,2]
[368708565,1751317840455,-948.0,0.00013877,2]
[368708567,1751317840464,-615.796,0.00013885,2]
[368708569,1751317840474,-200.0,0.00013888,2]